bitfinex-derivatives/quotes_SOLF0:USTF0_20241208
["timestamp","ask_amount","ask_price","bid_price","bid_amount"]
[1733652420831,2.128,234.8,234.75,6.69408052]
[1733652421036,6.69408052,234.83,234.75,6.69408052]
[1733652421237,6.69408052,234.83,234.77,6.69408052]
[1733652422537,2.1279,234.81,234.75,2.1284]
[1733652422738,10.4512569,234.83,234.72,1.3335]
[1733652424644,2.1281,234.79,234.74,2.1285]
[1733652424843,2.1281,234.79,234.72,1.3335]
[1733652425250,2.128,234.81,234.72,1.3335]
[1733652425749,2.128,234.81,234.76,2.1282]
[1733652426255,10.4512569,234.86,234.73,10.4512569]
[1733652426552,2.08,234.85,234.73,10.4512569]
[1733652426741,4.2076,234.85,234.73,10.4512569]
[1733652426947,4.2076,234.85,234.8,2.128]
[1733652427143,2.08,234.85,234.8,2.128]
[1733652427450,2.1275,234.85,234.8,2.128]
[1733652428150,2.1276,234.84,234.79,2.1281]
[1733652430855,2.1275,234.85,234.79,2.1281]
[1733652431056,10.4512569,234.86,234.79,2.1281]
[1733652432558,2.1277,234.84,234.79,2.1281]
[1733652435861,2.1277,234.83,234.78,2.1282]
[1733652436164,10.4512569,234.86,234.76,2.08]
[1733652436464,10.4512569,234.83,234.72,3.4135]
[1733652437061,2.1278,234.82,234.76,2.1282]
[1733652437759,10.4512569,234.85,234.74,2.1284]
[1733652438066,10.4512569,234.82,234.72,3.4135]
[1733652438261,2.1281,234.79,234.73,2.1285]
[1733652438868,2.08,234.81,234.73,2.1285]
[1733652439068,2.1282,234.78,234.73,2.1285]
[1733652439868,2.08,234.81,234.73,2.1285]
[1733652440167,2.1283,234.77,234.73,2.1285]
[1733652440758,2.1282,234.78,234.74,2.1285]
[1733652442470,2.1281,234.79,234.75,2.1284]
[1733652442666,2.08,234.81,234.76,6.6897322]
[1733652442867,6.6897322,234.83,234.76,6.6897322]
[1733652443565,2.1279,234.81,234.76,8.8180322]
[1733652444574,2.1278,234.82,234.78,6.6897322]
[1733652444774,2.08,234.84,234.78,6.6897322]
[1733652445169,2.1278,234.83,234.78,8.8178322]
[1733652445565,6.6897322,234.85,234.78,6.6897322]
[1733652446271,8.8173322,234.85,234.8,2.1279]
[1733652454585,1.3457,234.89,234.82,6.6897322]
[1733652454781,6.6897322,234.88,234.83,2.1277]
[1733652455577,2.1274,234.87,234.83,2.1277]
[1733652455785,2.1274,234.87,234.8,2.08]
[1733652455786,2.08,234.92,234.87,2.1273]
[1733652455978,2.652,234.97,234.84,6.6897322]
[1733652456284,6.6897322,234.92,234.86,2.1274]
[1733652456485,6.6897322,234.92,234.84,6.6897322]
[1733652457284,2.1268,234.93,234.87,2.1273]
[1733652457489,8.8165322,234.93,234.87,2.1273]
[1733652459486,2.1268,234.93,234.86,6.6897322]
[1733652459686,8.8165322,234.93,234.88,2.1272]
[1733652460386,6.6897322,234.93,234.88,2.1272]
[1733652460790,6.6897322,234.95,234.89,6.6897322]
[1733652460990,6.6897322,234.94,234.89,6.6897322]
[1733652461496,6.6897322,234.95,234.89,6.6897322]
[1733652461989,6.6897322,234.95,234.89,8.8168322]
[1733652462294,2.1267,234.94,234.87,6.6897322]
[1733652462689,2.1267,234.94,234.85,2.08]
[1733652462690,8.8165322,234.93,234.88,2.1272]
[1733652463092,2.1268,234.93,234.88,2.1272]
[1733652463793,1.3723,234.97,234.89,6.6897322]
[1733652463993,1.3723,234.97,234.85,2.08]
[1733652464198,1.3723,234.97,234.9,6.6897322]
[1733652464698,6.6897322,234.96,234.9,6.6897322]
[1733652465599,6.6897322,234.96,234.91,2.1269]
[1733652466699,8.8162322,234.96,234.91,2.1269]
[1733652467299,8.8162322,234.96,234.9,8.8168322]
[1733652467595,6.6897322,234.92,234.84,6.6897322]
[1733652467799,6.6897322,234.9,234.86,2.1273]
[1733652469195,8.8168322,234.9,234.86,2.1273]
[1733652470807,2.1275,234.85,234.81,2.1278]
[1733652471104,6.6897322,234.88,234.8,8.7697322]
[1733652471498,6.6897322,234.86,234.8,8.7697322]
[1733652472502,8.8172322,234.86,234.82,2.1278]
[1733652472799,6.6897322,234.84,234.76,2.08]
[1733652473010,6.6897322,234.82,234.76,2.08]
[1733652473403,8.8176322,234.82,234.77,2.1282]
[1733652473601,6.6897322,234.82,234.77,2.1282]
[1733652473802,6.6897322,234.8,234.75,8.7697322]
[1733652474003,8.8177322,234.8,234.76,2.1283]
[1733652475603,6.6897322,234.8,234.77,2.1282]
[1733652477804,6.6897322,234.8,234.71,1.293]
[1733652478105,8.8178322,234.8,234.73,6.6897322]
[1733652478305,8.8178322,234.8,234.76,2.1283]
[1733652478608,1.2814,234.85,234.77,6.6897322]
[1733652478797,1.2944,234.86,234.79,6.6897322]
[1733652479005,1.2944,234.86,234.82,2.1278]
[1733652480603,3.4219,234.86,234.82,2.1278]
[1733652481710,6.6897322,234.85,234.82,2.1278]
[1733652484616,8.8171322,234.87,234.82,2.1278]
[1733652486218,6.6897322,234.85,234.82,2.1278]
[1733652490520,6.6897322,234.85,234.77,2.08]
[1733652490722,6.6897322,234.78,234.72,8.81992988]
[1733652491425,6.6897322,234.78,234.76,2.1283]
[1733652492222,6.6897322,234.78,234.73,6.6897322]
[1733652492425,6.6897322,234.78,234.75,2.1284]
[1733652492924,6.6897322,234.76,234.72,2.13019768]
[1733652493426,8.8178322,234.79,234.74,2.1285]
[1733652494322,6.6897322,234.77,234.74,2.1285]
[1733652496233,1.3919,234.82,234.74,6.6897322]
[1733652496530,6.6897322,234.81,234.76,6.6897322]
[1733652497427,2.1275,234.85,234.8,2.1279]
[1733652497832,2.1275,234.85,234.78,6.6897322]
[1733652498330,6.6897322,234.86,234.81,2.1278]
[1733652498928,6.6897322,234.86,234.78,6.6897322]
[1733652499134,1.4086,234.87,234.8,6.6897322]
[1733652499324,6.6897322,234.88,234.82,6.6897322]
[1733652500030,8.8170322,234.88,234.82,6.6897322]
[1733652501735,10.1783322,234.89,234.82,6.6897322]
[1733652502529,2.1273,234.88,234.82,6.6897322]
[1733652502734,2.1273,234.88,234.84,2.1275]
[1733652503435,2.1273,234.88,234.85,2.1275]
[1733652504237,8.0511322,234.89,234.85,2.1275]
[1733652504437,10.1783322,234.89,234.85,2.1275]
[1733652504831,91.00094282,234.9,234.82,6.6897322]
[1733652505027,6.6897322,234.88,234.82,6.6897322]
[1733652506339,6.6897322,234.88,234.85,2.1275]
[1733652507134,6.6897322,234.88,234.82,6.6897322]
[1733652507340,2.1269,234.93,234.84,6.6897322]
[1733652507537,6.6897322,234.92,234.84,6.6897322]
[1733652507735,6.6897322,234.94,234.89,2.1272]
[1733652507937,4.1866,234.96,234.88,6.6897322]
[1733652508138,6.6897322,234.95,234.88,6.6897322]
[1733652508935,6.6897322,234.95,234.9,2.1271]
[1733652509741,4.06,234.94,234.9,2.1271]
[1733652509937,10.7497322,234.94,234.9,2.1271]
[1733652510141,6.6897322,234.92,234.9,2.1271]
[1733652511239,6.6897322,234.92,234.86,6.6897322]
[1733652511439,3.37,234.91,234.89,2.1272]
[1733652511836,3.4,234.9,234.89,2.1272]
[1733652512245,3.4,234.9,234.88,2.1273]
[1733652512838,3.4,234.9,234.89,2.1272]
[1733652525347,7.17,234.9,234.89,2.1272]
[1733652529653,0.828,234.9,234.89,10.8769322]
[1733652529952,0.766,234.91,234.9,2.1271]
[1733652530146,3.49,234.93,234.89,2.06]
[1733652530354,3.49,234.93,234.91,2.127]
[1733652531479,6.89,234.93,234.92,2.1269]
[1733652531672,10.29,234.93,234.92,2.1269]
[1733652531868,14.79,234.93,234.92,2.1269]
[1733652534987,14.79,234.93,234.92,8.8166322]
[1733652537188,14.79,234.93,234.92,2.1269]
[1733652540662,16.9168,234.93,234.9,2.127]
[1733652540862,11.3,234.93,234.92,6.6897322]
[1733652541458,11.3,234.93,234.92,8.8166322]
[1733652542561,15.69,234.93,234.92,8.8166322]
[1733652545467,15.69,234.93,234.92,2.1269]
[1733652546959,19.52,234.93,234.92,2.1269]
[1733652551370,19.52,234.93,234.88,2.06]
[1733652551570,12.72,234.93,234.88,8.7497322]
[1733652552776,12.72,234.93,234.92,2.1269]
[1733652552968,8.22,234.93,234.85,2.06]
[1733652553163,6.6897322,234.92,234.86,6.6897322]
[1733652553368,13.4897322,234.92,234.86,6.6897322]
[1733652553673,13.4897322,234.92,234.83,58.0306203]
[1733652553674,13.4897322,234.92,234.87,2.1273]
[1733652553975,13.4897322,234.92,234.86,8.7497322]
[1733652554273,2.97,234.91,234.86,8.7497322]
[1733652554573,5.22,234.9,234.88,2.1271]
[1733652555968,11.9097322,234.9,234.86,2.1273]
[1733652557270,14.0368322,234.9,234.86,2.1273]
[1733652557874,8.8169322,234.88,234.84,4.1875]
[1733652558379,8.8169322,234.88,234.85,2.1274]
[1733652559571,2.1272,234.88,234.85,2.1274]
[1733652559871,2.1271,234.89,234.84,2.06]
[1733652560080,2.1271,234.89,234.86,2.1274]
[1733652560267,11.9097322,234.9,234.86,2.1274]
[1733652560467,14.0368322,234.9,234.87,2.1273]
[1733652560677,11.9097322,234.9,234.84,2.06]
[1733652561073,14.0367322,234.9,234.86,2.1273]
[1733652561269,14.0367322,234.9,234.84,8.7497322]
[1733652562170,14.0367322,234.9,234.86,2.1273]
[1733652562377,14.0368322,234.9,234.84,8.7497322]
[1733652562577,14.0368322,234.9,234.85,1.06458046]
[1733652562777,14.0368322,234.9,234.84,8.7497322]
[1733652563676,14.0368322,234.9,234.86,2.1274]
[1733652564278,4.14,234.89,234.86,2.1274]
[1733652564479,12.9569322,234.89,234.85,2.1275]
[1733652564684,6.6897322,234.87,234.82,2.06]
[1733652565077,2.1275,234.86,234.82,2.1278]
[1733652566585,6.6897322,234.85,234.82,2.1278]
[1733652567085,8.8172322,234.85,234.81,2.1279]
[1733652567483,6.6897322,234.83,234.75,58.04916567]
[1733652567787,8.8175322,234.83,234.79,2.128]
[1733652568384,2.1278,234.83,234.79,2.128]
[1733652568579,8.8176322,234.82,234.78,2.1282]
[1733652568786,2.06,234.84,234.72,10.87992988]
[1733652568787,6.6897322,234.8,234.72,10.87992988]
[1733652568980,3.9709,234.83,234.74,6.6897322]
[1733652569181,3.9709,234.83,234.76,6.6897322]
[1733652569480,6.6897322,234.86,234.8,6.6897322]
[1733652570482,6.6897322,234.86,234.82,2.1278]
[1733652571787,8.8174322,234.84,234.8,2.1279]
[1733652571987,6.6897322,234.84,234.78,6.6897322]
[1733652572385,2.1278,234.82,234.78,8.8179322]
[1733652572585,8.8175322,234.82,234.78,2.1282]
[1733652573186,8.8175322,234.82,234.77,2.06]
[1733652573187,6.6897322,234.8,234.77,2.1283]
[1733652573784,6.6897322,234.78,234.72,4.19019768]
[1733652574191,6.6897322,234.8,234.73,6.6897322]
[1733652574992,4.7924,234.82,234.75,2.1285]
[1733652574993,2.1281,234.79,234.75,2.1285]
[1733652575192,6.5281,234.79,234.75,2.1285]
[1733652575692,6.5281,234.79,234.76,2.1283]
[1733652575693,4.4,234.79,234.76,2.1283]
[1733652576291,4.4,234.79,234.78,2.1282]
[1733652579985,7.8,234.79,234.78,2.1282]
[1733652580187,11.2,234.79,234.78,2.1282]
[1733652582694,11.2,234.79,234.77,4.1883]
[1733652586405,17.8897322,234.79,234.76,2.1284]
[1733652587899,17.8897322,234.79,234.71,2.06]
[1733652588101,17.8897322,234.79,234.77,2.1283]
[1733652589106,11.2,234.79,234.77,2.1283]
[1733652592299,14.18,234.79,234.77,2.1283]
[1733652592505,14.18,234.79,234.78,2.1282]
[1733652592899,14.18,234.79,234.78,8.8179322]
[1733652594011,19.5,234.79,234.78,8.8179322]
[1733652595611,19.5,234.79,234.78,2.1282]
[1733652597105,19.5,234.79,234.78,3.19300454]
[1733652598407,22.94,234.79,234.78,3.19300454]
[1733652600109,0.1722,234.79,234.78,7.38077509]
[1733652600415,0.1722,234.79,234.78,8.66707509]
[1733652600611,0.1722,234.79,234.78,7.16813993]
[1733652600811,0.1722,234.79,234.78,9.93614519]
[1733652601015,0.1722,234.79,234.78,4.6839]
[1733652601211,0.1722,234.79,234.78,9.93609016]
[1733652602206,0.1722,234.79,234.78,16.62582236]
[1733652606017,0.1722,234.79,234.78,11.58585334]
[1733652606214,0.1722,234.79,234.78,11.94251725]
[1733652606413,0.1722,234.79,234.78,2.1282]
[1733652606613,0.1722,234.79,234.78,8.8179322]
[1733652607214,0.1722,234.79,234.78,2.1282]
[1733652608616,0.1722,234.79,234.78,9.88273185]
[1733652608816,0.1722,234.79,234.78,3.19299965]
[1733652609009,0.1722,234.79,234.78,2.1282]
[1733652609416,0.1722,234.79,234.78,3.19303032]
[1733652609614,0.1722,234.79,234.78,9.88276252]
[1733652610316,0.1722,234.79,234.78,9.88273834]
[1733652611111,0.1722,234.79,234.78,11.58633511]
[1733652612414,15.18,234.8,234.79,2.1281]
[1733652612620,15.18,234.8,234.79,3.19290614]
[1733652613420,15.18,234.8,234.79,2.1281]
[1733652613719,15.18,234.8,234.79,3.19282705]
[1733652616312,15.18,234.8,234.79,7.38193819]
[1733652616718,15.18,234.8,234.79,11.58613479]
[1733652617116,15.18,234.8,234.79,3.19282705]
[1733652617823,15.18,234.8,234.79,2.1281]
[1733652618218,15.18,234.8,234.79,3.19291177]
[1733652618621,15.18,234.8,234.79,9.88264397]
[1733652619926,15.18,234.8,234.79,14.07201547]
[1733652620425,15.18,234.8,234.79,11.58610508]
[1733652620614,15.18,234.8,234.79,11.58603335]
[1733652620820,15.18,234.8,234.79,14.0722292]
[1733652621323,15.18,234.8,234.79,7.382497]
[1733652621523,15.18,234.8,234.79,11.58603335]
[1733652622620,15.18,234.8,234.79,4.89630115]
[1733652622818,15.18,234.8,234.79,3.19279275]
[1733652623418,15.18,234.8,234.79,2.1281]
[1733652624320,15.18,234.8,234.79,3.19286617]
[1733652625727,15.18,234.8,234.79,4.89636834]
[1733652625927,9.1389,234.8,234.79,4.89636834]
[1733652626227,1.76,234.81,234.8,2.128]
[1733652626426,1.76,234.81,234.8,14.07193375]
[1733652626830,1.76,234.81,234.8,11.30366541]
[1733652627023,1.76,234.81,234.8,14.07143444]
[1733652627328,1.76,234.81,234.8,11.58567337]
[1733652631122,1.76,234.81,234.8,4.89594117]
[1733652632622,1.76,234.81,234.8,2.128]
[1733652632827,1.76,234.81,234.8,4.89635201]
[1733652633735,1.76,234.81,234.75,8.7497322]
[1733652634132,1.76,234.81,234.77,2.1282]
[1733652634335,1.76,234.81,234.75,8.7497322]
[1733652636740,1.76,234.81,234.72,0.12926461]
[1733652636741,6.6897322,234.8,234.72,0.12926461]
[1733652636940,8.8178322,234.8,234.73,8.7497322]
[1733652637534,8.8178322,234.8,234.75,2.1284]
[1733652638432,8.8178322,234.8,234.7,0.12921739]
[1733652638433,1.76,234.81,234.7,0.12921739]
[1733652638644,6.6897322,234.76,234.71,2.13028844]
[1733652639437,2.1286,234.74,234.71,2.13028844]
[1733652639636,6.6897322,234.74,234.71,2.13028844]
[1733652639831,1.2866,234.73,234.71,2.13028844]
[1733652640432,1.2866,234.73,234.7,6.6897322]
[1733652640433,3.4,234.72,234.7,6.6897322]
[1733652640735,3.4,234.72,234.71,6.6897322]
[1733652640931,3.4,234.72,234.71,8.8185322]
[1733652641437,3.4,234.72,234.71,11.30249772]
[1733652642240,3.4,234.72,234.71,11.43169757]
[1733652643340,6.8,234.72,234.71,11.43169757]
[1733652643739,6.8,234.72,234.71,11.30249772]
[1733652643936,6.8,234.72,234.71,13.13551934]
[1733652645642,6.8,234.72,234.71,14.2004041]
[1733652646043,6.8,234.72,234.71,14.0712035]
[1733652646545,14.37,234.72,234.71,14.0712035]
[1733652647244,14.37,234.72,234.71,14.07118307]
[1733652650244,14.37,234.72,234.71,8.8185322]
[1733652650546,18.72,234.72,234.71,14.071763]
[1733652650745,18.72,234.72,234.71,14.07185199]
[1733652651337,18.72,234.72,234.71,7.38211979]
[1733652651544,18.72,234.72,234.71,14.07185199]
[1733652652143,18.72,234.72,234.71,4.89747163]
[1733652654140,18.72,234.72,234.71,4.89812349]
[1733652655447,18.72,234.72,234.71,2.76932349]
[1733652655649,18.72,234.72,234.68,4.1891]
[1733652655846,15.32,234.72,234.68,4.1891]
[1733652656645,22.0097322,234.72,234.68,2.06]
[1733652656844,22.0097322,234.72,234.65,2.06]
[1733652657348,22.0097322,234.72,234.64,6.6897322]
[1733652657349,24.1384322,234.72,234.66,2.1293]
[1733652657544,3.4,234.71,234.66,2.1293]
[1733652658839,3.4,234.71,234.66,8.8190322]
[1733652659044,3.4,234.71,234.68,6.6897322]
[1733652659239,3.4,234.71,234.64,2.06]
[1733652659240,3.4,234.71,234.7,6.6897322]
[1733652659642,3.4,234.71,234.7,8.8186322]
[1733652660252,6.8,234.71,234.7,8.8186322]
[1733652663257,10.66,234.71,234.7,8.8186322]
[1733652666950,10.66,234.71,234.7,2.1289]
[1733652667148,10.66,234.71,234.7,8.8186322]
[1733652667654,10.66,234.71,234.7,9.88381966]
[1733652669363,10.66,234.71,234.7,3.19408746]
[1733652669557,10.66,234.71,234.7,2.1289]
[1733652672559,10.66,234.71,234.7,3.19412399]
[1733652674066,12.42,234.71,234.7,9.88385619]
[1733652674255,12.42,234.71,234.7,11.58809808]
[1733652674460,11.76587651,234.71,234.7,14.06951883]
[1733652675570,9.02,234.71,234.7,14.19142885]
[1733652676170,9.02,234.71,234.7,14.06951883]
[1733652676973,9.02,234.71,234.7,13.64734575]
[1733652677281,14.78,234.71,234.7,13.64734575]
[1733652679378,14.78,234.71,234.7,16.13087152]
[1733652680174,14.78,234.71,234.7,16.13098851]
[1733652680675,14.78,234.71,234.7,16.13091784]
[1733652683472,14.78,234.71,234.7,16.25313551]
[1733652683781,5.43,234.72,234.71,2.1288]
[1733652683976,5.43,234.72,234.71,7.38108564]
[1733652684178,5.43,234.72,234.71,7.50330331]
[1733652684572,5.43,234.72,234.71,7.38108564]
[1733652684777,3.3141,234.72,234.71,7.38108564]
[1733652684977,8.0631322,234.86,234.83,2.1277]
[1733652684978,1.3734,234.86,234.83,2.1277]
[1733652685179,1.3734,234.86,234.83,8.8174322]
[1733652685380,14.4183,234.85,234.83,8.8174322]
[1733652686580,14.4183,234.85,234.84,2.1276]
[1733652686876,17.8183,234.85,234.84,2.1276]
[1733652687081,17.8183,234.85,234.84,8.8173322]
[1733652687782,17.8183,234.85,234.84,2.1276]
[1733652687978,17.8183,234.85,234.84,8.8173322]
[1733652688779,17.8183,234.85,234.84,9.88199717]
[1733652689379,17.8183,234.85,234.84,8.8173322]
[1733652689774,16.48,234.85,234.84,9.881991]
[1733652690485,16.48,234.85,234.84,8.8173322]
[1733652690678,16.48,234.85,234.84,9.88197897]
[1733652691480,16.48,234.85,234.84,11.58523827]
[1733652692182,16.48,234.85,234.84,11.58505503]
[1733652692681,16.48,234.85,234.84,11.58505769]
[1733652693387,16.48,234.85,234.84,8.8173322]
[1733652693576,16.48,234.85,234.84,11.5848208]
[1733652694384,1.3484,234.92,234.91,2.127]
[1733652694583,1.3484,234.92,234.91,10.8767322]
[1733652695285,1.3484,234.92,234.91,4.187]
[1733652696483,1.3484,234.92,234.91,10.8767322]
[1733652700085,19.03,234.93,234.91,8.7497322]
[1733652700281,19.03,234.93,234.92,2.1269]
[1733652704698,19.03,234.93,234.92,8.8166322]
[1733652717902,19.03,234.93,234.92,10.8566322]
[1733652718505,19.03,234.93,234.92,4.1669]
[1733652718806,19.03,234.93,234.92,10.8566322]
[1733652720008,19.03,234.93,234.91,2.04]
[1733652720207,6.12,234.93,234.89,2.04]
[1733652720402,1.2927,234.92,234.89,8.8169322]
[1733652720709,1.2927,234.92,234.89,6.6897322]
[1733652721405,6.12,234.93,234.92,2.1269]
[1733652721911,16.87,234.93,234.92,2.1269]
[1733652722902,16.87,234.93,234.91,8.8167322]
[1733652723209,16.87,234.93,234.89,8.7297322]
[1733652723803,18.9968,234.93,234.89,6.6897322]
[1733652724003,16.87,234.93,234.89,6.6897322]
[1733652724504,16.87,234.93,234.89,8.8169322]
[1733652725307,16.87,234.93,234.9,2.1271]
[1733652725506,16.87,234.93,234.91,6.6897322]
[1733652726107,10.75,234.93,234.91,6.6897322]
[1733652726307,10.75,234.93,234.92,2.1269]
[1733652728007,16.47,234.93,234.92,2.1269]
[1733652734414,16.47,234.93,234.92,3.19114368]
[1733652736613,16.47,234.93,234.92,4.89385078]
[1733652737212,16.47,234.93,234.92,6.93385078]
[1733652740830,16.47,234.93,234.92,4.89385078]
[1733652741032,16.47,234.93,234.92,13.62358298]
[1733652741934,16.47,234.93,234.92,10.8566322]
[1733652742224,16.47,234.93,234.92,13.62361853]
[1733652751729,16.47,234.93,234.92,10.8566322]
[1733652754237,16.47,234.93,234.92,13.62347873]
[1733652754841,16.47,234.93,234.92,16.10964798]
[1733652755241,1e-08,234.93,234.92,16.10964798]
[1733652755540,1.3517,235.02,235.01,2.1261]
[1733652755740,1.3517,235.02,235.01,8.8158322]
[1733652757641,1.3517,235.02,235.0,2.1262]
[1733652757938,1.3517,235.02,235.01,6.6897322]
[1733652759339,1.3517,235.02,235.01,8.8158322]
[1733652759535,10.5,235.03,235.01,6.6897322]
[1733652759731,14.22,235.03,235.01,6.6897322]
[1733652759936,14.22,235.03,235.02,2.126]
[1733652761440,14.22,235.03,234.99,2.04]
[1733652761641,14.22,235.03,234.99,8.7297322]
[1733652762142,14.22,235.03,235.0,2.1262]
[1733652763834,14.22,235.03,234.99,8.7297322]
[1733652764743,14.22,235.03,235.0,2.1261]
[1733652766041,14.22,235.03,234.99,2.04]
[1733652766343,16.346,235.03,234.99,2.04]
[1733652767043,16.346,235.03,234.99,4.1663]
[1733652767744,6.6897322,235.01,234.87,4.2547]
[1733652767946,14.22,235.03,234.93,6.6897322]
[1733652767947,6.6897322,234.99,234.93,6.6897322]
[1733652768140,1.3744,234.98,234.93,6.6897322]
[1733652768944,1.3744,234.98,234.92,2.04]
[1733652769140,1.3744,234.98,234.92,8.7297322]
[1733652769342,2.1265,234.97,234.92,10.8565322]
[1733652769539,2.1265,234.97,234.92,8.7297322]
[1733652769740,1.34,234.96,234.92,8.7297322]
[1733652770144,2.1267,234.95,234.91,2.127]
[1733652770541,6.6897322,234.95,234.83,1.3565]
[1733652770850,2.1268,234.93,234.89,2.1272]
[1733652771348,6.6897322,234.91,234.85,2.04]
[1733652771547,6.6897322,234.89,234.83,2.04]
[1733652771743,1.3084,234.9,234.85,6.6897322]
[1733652772645,1.3084,234.9,234.8,58.02912678]
[1733652772949,8.0144322,234.89,234.82,6.6897322]
[1733652773449,8.0144322,234.89,234.83,1.06465013]
[1733652773650,8.0144322,234.89,234.84,1.06465013]
[1733652773651,10.1417322,234.89,234.84,1.06465013]
[1733652773844,10.1417322,234.89,234.84,6.6897322]
[1733652774043,1.3247,234.89,234.86,6.6897322]
[1733652774544,1.3247,234.89,234.87,2.1273]
[1733652775745,3.4,234.88,234.87,2.1273]
[1733652776745,8.38,234.88,234.87,2.1273]
[1733652781653,8.38,234.88,234.86,6.6897322]
[1733652784652,8.38,234.88,234.87,2.1274]
[1733652785049,8.38,234.88,234.86,6.6897322]
[1733652786156,8.38,234.88,234.85,2.04]
[1733652786352,8.38,234.88,234.83,4.1677]
[1733652786554,8.38,234.88,234.84,6.6897322]
[1733652787554,3.4,234.87,234.84,6.6897322]
[1733652789247,3.4,234.87,234.86,6.6897322]
[1733652789955,3.4,234.87,234.86,8.8172322]
[1733652790360,9.18,234.87,234.86,8.8172322]
[1733652791650,9.18,234.87,234.86,2.1275]
[1733652797861,9.18,234.87,234.85,10.8572322]
[1733652798162,9.18,234.87,234.83,8.7297322]
[1733652798559,9.18,234.87,234.83,10.8574322]
[1733652799859,9.18,234.87,234.8,58.02912678]
[1733652800055,2.1275,234.86,234.82,6.6897322]
[1733652800463,5.19,234.85,234.82,6.6897322]
[1733652801259,5.19,234.85,234.84,8.8173322]
[1733652802568,8.59,234.85,234.84,2.1276]
[1733652802862,8.59,234.85,234.83,8.8174322]
[1733652804263,3.4,234.84,234.83,8.8174322]
[1733652804965,3.4,234.84,234.83,9.88202536]
[1733652806062,3.4,234.84,234.81,2.1278]
[1733652806269,3.4,234.84,234.83,6.6897322]
[1733652807260,3.4,234.84,234.83,7.75438537]
[1733652808167,3.4,234.84,234.83,6.6897322]
[1733652808362,3.4,234.84,234.83,7.75438537]
[1733652809764,3.4,234.84,234.83,7.75438165]
[1733652810565,3.4,234.84,234.83,9.88208165]
[1733652811672,3.4,234.84,234.83,11.58552475]
[1733652812066,3.4,234.84,234.83,4.89579255]
[1733652812267,3.4,234.84,234.83,9.88208165]
[1733652813370,3.4,234.84,234.83,11.58555516]
[1733652813665,3.4,234.84,234.83,11.58557665]
[1733652814768,10.0897322,234.84,234.83,2.76814445]
[1733652814969,12.2173322,234.84,234.83,1.06467094]
[1733652815866,10.0897322,234.84,234.83,1.06467094]
[1733652816373,10.0897322,234.84,234.75,0.12224025]
[1733652816673,8.8176322,234.82,234.77,2.1283]
[1733652816868,8.8176322,234.82,234.78,1.70376297]
[1733652817067,8.8176322,234.82,234.77,2.1283]
[1733652817068,5.56,234.81,234.77,2.1283]
[1733652817265,5.56,234.81,234.78,3.83202148]
[1733652817471,5.56,234.81,234.78,2.1282]
[1733652818464,5.56,234.81,234.73,6.6897322]
[1733652818465,6.6897322,234.8,234.73,6.6897322]
[1733652818667,5.56,234.81,234.73,6.6897322]
[1733652818668,5.56,234.81,234.74,1.70397515]
[1733652818871,6.6897322,234.8,234.73,6.6897322]
[1733652819071,6.6897322,234.8,234.74,1.70401426]
[1733652819369,2.1281,234.79,234.73,6.6897322]
[1733652819573,2.1281,234.79,234.75,6.6897322]
[1733652820567,2.1281,234.79,234.7,2.04]
[1733652820568,2.1285,234.76,234.71,2.1287]
[1733652820772,6.6897322,234.78,234.71,2.1287]
[1733652821674,2.1285,234.75,234.71,2.1287]
[1733652822972,2.129,234.7,234.66,2.04]
[1733652824071,3.4,234.84,234.66,2.04]
[1733652824371,3.4,234.84,234.83,6.6897322]
[1733652825074,10.0897322,234.84,234.74,0.12155895]
[1733652825279,14.1897322,234.84,234.77,6.6897322]
[1733652825975,5.56,234.83,234.77,6.6897322]
[1733652826680,5.56,234.83,234.78,2.1281]